Workbook

Sheet Contrôle 5.1.5
B2: [...] | C2: Référence à la colonne du fichier
B3: Saisir | C3: Informations à saisir prise dans l'extraction du PCA-PAR Edition concentrée
D5: Date du PCA-PAR | E5: [BZ] | F5: 2026-06-30
E7: Référence | H7: Référence
D8: Partie forfait
D10: Du | E10: [AI] | F10: 2026-06-30 | G10: Terme | H10: [N] | I10: A échoir
D11: Au | E11: [AJ] | F11: 2026-08-20 | G11: Nbre de copies du forfait | H11: [W] | I11: 3000
G12: Prorata temporis | H12: [AN] | I12: 0.5652
D13: Date proch. Fact. | E13: [AH] | F13: 2026-08-21
D14: Périodicité | E14: [J] | F14: 3
J15: +
D16: Début période précédente | F16: =EDATE(F19,-F14) -> 2026-05-21 | G16: Nbre de jours période Précédente | I16: =F19-F16+J16 -> 92 | J16: 0
D17: =IF(AND(F5>F16,F5<F19),"Date calcul ici","") -> Date calcul ici | F17: =IF(D17<>"",F5,"") -> 2026-06-30 | G17: =IF(D17<>"","Nbre de jours","") -> Nbre de jours | I17: =IF(D17<>"",F19-F17+J17,) -> 52 | J17: 0
D18: Fin de la période | F18: =F19-1 -> 2026-08-20
D19: Début prochaine période | F19: =IF(I10="A échoir",F13,EOMONTH(F21,-F14)+1) -> 2026-08-21 | G19: Nbre de jours prochaine période | I19: =F21-F19+J19 -> 92 | J19: 1
D20: =IF(AND(F5>F19,F5<F21),"Date calcul ici","") ->  | F20: =IF(D20<>"",F5,"") ->  | G20: =IF(D20<>"","Nbre de jours","") ->  | I20: =IF(D20<>"",F20-F19+J20,) -> 0 | J20: 1
D21: Fin de la période | F21: =IF(I10="A échoir",EDATE(F19,F14)-1,F13) -> 2026-11-20
D22: Début période suivante | F22: =F21+1 -> 2026-11-21 | G22: Nbre de jours période suivante | I22: =F24-F22+J22 -> 100 | J22: 1
D23: =IF(AND(F5>F22,F8<F24),"Date calcul ici","") ->  | F23: =IF(D23<>"",F5,"") ->  | G23: =IF(D23<>"","Nbre de jours","") ->  | I23: =IF(D23<>"",F23-F22+J23,) -> 0 | J23: 1
D24: Fin de la période | F24: =EOMONTH(F21,F14) -> 2027-02-28
G26: Nbre de jours à prendre en compte | I26: =I20+I17+I23 -> 52
G27: Nbre de jours période | I27: =IF(D17<>"",I16,IF(D20<>"",I19,I22)) -> 92
G28: Nature (PCA ou PAR) | I28: =IF(I10="A échoir",IF(F19>F5,"PCA","PAR"),"") & IF(I10="Echu",IF(F5<F19,"PCA","PAR"),"") -> PCA
G29: =IF(I28="PCA","Prorata forfait non consommé","Prorata forfait à facturer")&" re-calculé" -> Prorata forfait non consommé re-calculé | I29: =I11/I27*(I26) -> 1695.652174
G30: Quantité | H30: [AO] | I30: 3000 | K30: Contrôler
G31: Prorata forfait de l'extraction | H31: [AN]*[AO] | I31: =I30*I12 -> 1695.6
D33: Partie régul.
D34: Du | E34: [AI] | F34: 2026-05-21 | G34: Compteur à date du PCA-PAR | H34: [AL] | I34: 6193
D35: Au | E35: [AJ] | F35: =F5 -> 2026-06-30 | G35: Compteur de Dernière régularisation | H35: [BA] | I35: 4561
G37: Cumul des Forfaits facturés | H37: [BB] | I37: 3033 | J37: =I11/I27 -> 32.60869565
G38: Forfait non facturé | I38: =IF(F23<>"",I11,) -> 0
G39: ="Report du " &G29 -> Report du Prorata forfait non consommé re-calculé | I39: =IF(I28="PCA",-1,1) * I29 -> -1695.652174
G40: TOTAL (Cumul des Forfaits facturés) | I40: =I37+I38+I39 -> 1337.347826
G42: Sous total | I42: =I34-I35-I40 -> 294.6521739
G43: Remboursement des unités facturées non consommées | H43: cf RFC | I43: Non
I44: =IF(I45>0,"PAR","") -> PAR
G45: PCA-PAR sur régularisation re-calculé | I45: =IF(AND(I42<0,I43="Non"),0,I42) -> 294.6521739
G46: Prorata temporis | H46: [AN] | I46: 1 | K46: Contrôler
G47: Quantité | H47: [AO] | I47: 295.04
G48: PCA-PAR sur régularisation de l'extraction | H48: [AN]*[AO] | I48: =I46*I47 -> 295.04

Sheet a_EditionConcentree 5.1.5
A2: Date de calcul du PCA-PAR | B2: =IF(BZ4<>"", BZ4,BY4) -> 2026-06-30 | J2: x | W2: x | AI2: x | AL2: x | AN2: x | AO2: x | AY2: x | BA2: x | BB2: x | BT2: x
A3: Code client | B3: Raison sociale du client | C3: Code SSC | D3: Libellé de la SSC | E3: Statut SSC | F3: Code MSC | G3: Libellé de la MSC | H3: Code RFC | I3: Libellé de la RFC | J3: Infos sur la fréquence de facturation | K3: Fréquence de facturation | L3: Périodicité de facturation | M3: Jour de facturation | N3: Terme de la RFC | O3: Libellé du modèle | P3: Identifiant fabricant | Q3: Activité du modèle | R3: Famille du modèle | S3: Sous famille du modèle | T3: Quantité forfaitaire | U3: Montant forfaitaire | V3: Montant forfaitaire proratisé | W3: Forfait copies | X3: Tranche copies | Y3: Libellé de la grandeur | Z3: VMM | AA3: Origine vol. moy. | AB3: Date dernier relevé prest | AC3: Dernier relevé prest | AD3: Date dernier relevé client | AE3: Dernier relevé client | AF3: Date dernier compteur facturé | AG3: Dernier compteur facturé | AH3: Date prochaine facture théorique | AI3: Du | AJ3: Au | AK3: Compteur PCA / PAR pour un bien | AL3: Somme compteurs estimés pour PCA PAR pour la RFC | AM3: Somme des derniers compteurs facturés | AN3: Prorata temporis | AO3: Quantité | AP3: P.U. | AQ3: Montant PCA | AR3: Montant PCA proratisé (bien/grandeur) | AS3: Montant PAR | AT3: Montant PAR proratisé (bien/grandeur) | AU3: Montant CCA | AV3: Montant CCA proratisé (bien/grandeur) | AW3: Montant FNP | AX3: Montant FNP proratisé (bien/grandeur) | AY3: Type ligne | AZ3: Date de dernière régularisation | BA3: Compteur de dernière régularisation | BB3: Cumul des forfaits facturés depuis la dernière régularisation | BC3: Infos sur la fréquence de facturation de la régularisation | BD3: Fréquence de facturation de la régularisation | BE3: Périodicité de facturation de la régularisation | BF3: Jour de facturation de la régularisation | BG3: Tranche à atteindre | BH3: Consommé réel | BI3: N° dernière facture | BJ3: Date de dernière facture | BK3: Nombre de copies offertes | BL3: Commentaires | BM3: Code article de la RFC | BN3: Libellé article de la RFC | BO3: Marque article de la RFC | BP3: Compte comptable de l'article de la RFC | BQ3: Organisation interne | BR3: Type de RFC | BS3: Agence du client | BT3: Agence du site | BU3: Agence du bien | BV3: Classement client | BW3: Chargé d'affaire | BX3: Id RFC | BY3: Activité | BZ3: Date calcul
A4: 109445 | B4: GIE MONDE DE LA PROPRETE | C4: 106945 | D4: Bureautique classique | E4: Validée | F4: FORNB - 2 | G4: FORFAIT Régularisation NB | H4: 53-1 | I4: FORFAIT TRIMEST REGUL COPIES NB | J4: le 21 tous les 3 mois | K4: 3 | L4: Mensuelle | M4: 21 | N4: A échoir | O4: Epson WorkForce WF-100W | P4: UTJK089333 | Q4: SYSTÈME IMPRESSION | R4: MULTIFONCTIONS | S4: MULTIFONCTIONS COULEUR | W4: 3000 | AH4: 2026-08-21 | AI4: 2026-06-30 | AJ4: 2026-08-20 | AN4: 0.5652173913 | AO4: 3000 | AP4: 0.008 | AQ4: 13.57 | AR4: 13.57 | AY4: Vente | BI4: 106369 | BJ4: 2026-05-31 | BL4: FORFAIT - Facture 106369 du 31/05/2026 | BM4: FCN | BN4: Forfait Copies noires | BP4: 70610000 | BQ4: 01 Impression A | BR4: Forfait et régularisation | BS4: MARCOUSSIS | BX4: 68950 | BY4: Informatique | BZ4: 2026-06-30
A5: 109445 | B5: GIE MONDE DE LA PROPRETE | C5: 106945 | D5: Bureautique classique | E5: Validée | F5: FORNB - 2 | G5: FORFAIT Régularisation NB | H5: 53-1 | I5: FORFAIT TRIMEST REGUL COPIES NB | J5: le 21 tous les 3 mois | K5: 3 | L5: Mensuelle | M5: 21 | N5: Echu | O5: Epson WorkForce WF-100W | P5: UTJK089333 | Q5: SYSTÈME IMPRESSION | R5: MULTIFONCTIONS | S5: MULTIFONCTIONS COULEUR | W5: 3000 | Y5: Totalisateur Noir (ou 109) | Z5: 1460 | AA5: VMM | AB5: 2026-05-27T18:46:00 | AC5: 4561 | AF5: 2026-05-27T18:46:00 | AG5: 4561 | AH5: 2026-08-21 | AI5: 2026-05-21 | AJ5: 2026-06-30 | AK5: 6193 | AL5: 6193 | AM5: 4561 | AN5: 1 | AO5: 295.0434783 | AP5: 0.008 | AS5: 2.36 | AT5: 2.360347826 | AY5: Vente | AZ5: 2026-05-21 | BA5: 4561 | BB5: 3033 | BC5: le 21 tous les 3 mois | BD5: 3 | BE5: Mensuelle | BF5: 21 | BI5: 106369 | BJ5: 2026-05-31 | BL5: REGULARISATION - | BM5: CSN | BN5: Copies supplémentaires noires | BP5: 70610000 | BQ5: 01 Impression A | BR5: Forfait et régularisation | BS5: MARCOUSSIS | BX5: 68950 | BY5: Informatique | BZ5: 2026-06-30
A8: Date de calcul du PCA-PAR | B8: =IF(BZ10<>"", BZ10,BY10) -> 2026-08-20 | J8: x | W8: x | AI8: x | AL8: x | AN8: x | AO8: x | AY8: x | BA8: x | BB8: x | BT8: x
A9: Code client | B9: Raison sociale du client | C9: Code SSC | D9: Libellé de la SSC | E9: Statut SSC | F9: Code MSC | G9: Libellé de la MSC | H9: Code RFC | I9: Libellé de la RFC | J9: Infos sur la fréquence de facturation | K9: Fréquence de facturation | L9: Périodicité de facturation | M9: Jour de facturation | N9: Terme de la RFC | O9: Libellé du modèle | P9: Identifiant fabricant | Q9: Activité du modèle | R9: Famille du modèle | S9: Sous famille du modèle | T9: Quantité forfaitaire | U9: Montant forfaitaire | V9: Montant forfaitaire proratisé | W9: Forfait copies | X9: Tranche copies | Y9: Libellé de la grandeur | Z9: VMM | AA9: Origine vol. moy. | AB9: Date dernier relevé prest | AC9: Dernier relevé prest | AD9: Date dernier relevé client | AE9: Dernier relevé client | AF9: Date dernier compteur facturé | AG9: Dernier compteur facturé | AH9: Date prochaine facture théorique | AI9: Du | AJ9: Au | AK9: Compteur PCA / PAR pour un bien | AL9: Somme compteurs estimés pour PCA PAR pour la RFC | AM9: Somme des derniers compteurs facturés | AN9: Prorata temporis | AO9: Quantité | AP9: P.U. | AQ9: Montant PCA | AR9: Montant PCA proratisé (bien/grandeur) | AS9: Montant PAR | AT9: Montant PAR proratisé (bien/grandeur) | AU9: Montant CCA | AV9: Montant CCA proratisé (bien/grandeur) | AW9: Montant FNP | AX9: Montant FNP proratisé (bien/grandeur) | AY9: Type ligne | AZ9: Date de dernière régularisation | BA9: Compteur de dernière régularisation | BB9: Cumul des forfaits facturés depuis la dernière régularisation | BC9: Infos sur la fréquence de facturation de la régularisation | BD9: Fréquence de facturation de la régularisation | BE9: Périodicité de facturation de la régularisation | BF9: Jour de facturation de la régularisation | BG9: Tranche à atteindre | BH9: Consommé réel | BI9: N° dernière facture | BJ9: Date de dernière facture | BK9: Nombre de copies offertes | BL9: Commentaires | BM9: Code article de la RFC | BN9: Libellé article de la RFC | BO9: Marque article de la RFC | BP9: Compte comptable de l'article de la RFC | BQ9: Organisation interne | BR9: Type de RFC | BS9: Agence du client | BT9: Agence du site | BU9: Agence du bien | BV9: Classement client | BW9: Chargé d'affaire | BX9: Id RFC | BY9: Activité | BZ9: Date calcul
A10: 109445 | B10: GIE MONDE DE LA PROPRETE | C10: 106945 | D10: Bureautique classique | E10: Validée | F10: FORNB - 2 | G10: FORFAIT Régularisation NB | H10: 53-1 | I10: FORFAIT TRIMEST REGUL COPIES NB | J10: le 21 tous les 3 mois | K10: 3 | L10: Mensuelle | M10: 21 | N10: Echu | O10: Epson WorkForce WF-100W | P10: UTJK089333 | Q10: SYSTÈME IMPRESSION | R10: MULTIFONCTIONS | S10: MULTIFONCTIONS COULEUR | W10: 3000 | Y10: Totalisateur Noir (ou 109) | Z10: 1460 | AA10: VMM | AB10: 2026-05-27T18:46:00 | AC10: 4561 | AF10: 2026-05-27T18:46:00 | AG10: 4561 | AH10: 2026-08-21 | AI10: 2026-05-21 | AJ10: 2026-08-20 | AK10: 8641 | AL10: 8641 | AM10: 4561 | AN10: 1 | AO10: 1080 | AP10: 0.008 | AS10: 8.64 | AT10: 8.64 | AY10: Vente | AZ10: 2026-05-21 | BA10: 4561 | BB10: 3000 | BC10: le 21 tous les 3 mois | BD10: 3 | BE10: Mensuelle | BF10: 21 | BI10: 106369 | BJ10: 2026-05-31 | BL10: REGULARISATION - | BM10: CSN | BN10: Copies supplémentaires noires | BP10: 70610000 | BQ10: 01 Impression A | BR10: Forfait et régularisation | BS10: MARCOUSSIS | BX10: 68950 | BY10: Informatique | BZ10: 2026-08-20
A13: Date de calcul du PCA-PAR | B13: =IF(BZ15<>"", BZ15,BY15) -> 2026-09-30 | J13: x | W13: x | AI13: x | AL13: x | AN13: x | AO13: x | AY13: x | BA13: x | BB13: x | BT13: x
A14: Code client | B14: Raison sociale du client | C14: Code SSC | D14: Libellé de la SSC | E14: Statut SSC | F14: Code MSC | G14: Libellé de la MSC | H14: Code RFC | I14: Libellé de la RFC | J14: Infos sur la fréquence de facturation | K14: Fréquence de facturation | L14: Périodicité de facturation | M14: Jour de facturation | N14: Terme de la RFC | O14: Libellé du modèle | P14: Identifiant fabricant | Q14: Activité du modèle | R14: Famille du modèle | S14: Sous famille du modèle | T14: Quantité forfaitaire | U14: Montant forfaitaire | V14: Montant forfaitaire proratisé | W14: Forfait copies | X14: Tranche copies | Y14: Libellé de la grandeur | Z14: VMM | AA14: Origine vol. moy. | AB14: Date dernier relevé prest | AC14: Dernier relevé prest | AD14: Date dernier relevé client | AE14: Dernier relevé client | AF14: Date dernier compteur facturé | AG14: Dernier compteur facturé | AH14: Date prochaine facture théorique | AI14: Du | AJ14: Au | AK14: Compteur PCA / PAR pour un bien | AL14: Somme compteurs estimés pour PCA PAR pour la RFC | AM14: Somme des derniers compteurs facturés | AN14: Prorata temporis | AO14: Quantité | AP14: P.U. | AQ14: Montant PCA | AR14: Montant PCA proratisé (bien/grandeur) | AS14: Montant PAR | AT14: Montant PAR proratisé (bien/grandeur) | AU14: Montant CCA | AV14: Montant CCA proratisé (bien/grandeur) | AW14: Montant FNP | AX14: Montant FNP proratisé (bien/grandeur) | AY14: Type ligne | AZ14: Date de dernière régularisation | BA14: Compteur de dernière régularisation | BB14: Cumul des forfaits facturés depuis la dernière régularisation | BC14: Infos sur la fréquence de facturation de la régularisation | BD14: Fréquence de facturation de la régularisation | BE14: Périodicité de facturation de la régularisation | BF14: Jour de facturation de la régularisation | BG14: Tranche à atteindre | BH14: Consommé réel | BI14: N° dernière facture | BJ14: Date de dernière facture | BK14: Nombre de copies offertes | BL14: Commentaires | BM14: Code article de la RFC | BN14: Libellé article de la RFC | BO14: Marque article de la RFC | BP14: Compte comptable de l'article de la RFC | BQ14: Organisation interne | BR14: Type de RFC | BS14: Agence du client | BT14: Agence du site | BU14: Agence du bien | BV14: Classement client | BW14: Chargé d'affaire | BX14: Id RFC | BY14: Activité | BZ14: Date calcul
A15: 109445 | B15: GIE MONDE DE LA PROPRETE | C15: 106945 | D15: Bureautique classique | E15: Validée | F15: FORNB - 2 | G15: FORFAIT Régularisation NB | H15: 53-1 | I15: FORFAIT TRIMEST REGUL COPIES NB | J15: le 21 tous les 3 mois | K15: 3 | L15: Mensuelle | M15: 21 | N15: Echu | O15: Epson WorkForce WF-100W | P15: UTJK089333 | Q15: SYSTÈME IMPRESSION | R15: MULTIFONCTIONS | S15: MULTIFONCTIONS COULEUR | W15: 3000 | Y15: Totalisateur Noir (ou 109) | Z15: 1460 | AA15: VMM | AB15: 2026-05-27T18:46:00 | AC15: 4561 | AF15: 2026-05-27T18:46:00 | AG15: 4561 | AH15: 2026-08-21 | AI15: 2026-05-21 | AJ15: 2026-08-20 | AK15: 8641 | AL15: 8641 | AM15: 4561 | AN15: 1 | AO15: 1080 | AP15: 0.008 | AS15: 8.64 | AT15: 8.64 | AY15: Vente | AZ15: 2026-05-21 | BA15: 4561 | BB15: 3000 | BC15: le 21 tous les 3 mois | BD15: 3 | BE15: Mensuelle | BF15: 21 | BI15: 106369 | BJ15: 2026-05-31 | BL15: REGULARISATION - | BM15: CSN | BN15: Copies supplémentaires noires | BP15: 70610000 | BQ15: 01 Impression A | BR15: Forfait et régularisation | BS15: MARCOUSSIS | BX15: 68950 | BY15: Informatique | BZ15: 2026-09-30
A16: 109445 | B16: GIE MONDE DE LA PROPRETE | C16: 106945 | D16: Bureautique classique | E16: Validée | F16: FORNB - 2 | G16: FORFAIT Régularisation NB | H16: 53-1 | I16: FORFAIT TRIMEST REGUL COPIES NB | J16: le 21 tous les 3 mois | K16: 3 | L16: Mensuelle | M16: 21 | N16: A échoir | O16: Epson WorkForce WF-100W | P16: UTJK089333 | Q16: SYSTÈME IMPRESSION | R16: MULTIFONCTIONS | S16: MULTIFONCTIONS COULEUR | W16: 3000 | AH16: 2026-08-21 | AI16: 2026-08-21 | AJ16: 2026-09-30 | AN16: 0.4456521739 | AO16: 3000 | AP16: 0.008 | AS16: 10.7 | AT16: 10.7 | AY16: Vente | BI16: 106369 | BJ16: 2026-05-31 | BL16: FORFAIT - Facture 106369 du 31/05/2026 | BM16: FCN | BN16: Forfait Copies noires | BP16: 70610000 | BQ16: 01 Impression A | BR16: Forfait et régularisation | BS16: MARCOUSSIS | BX16: 68950 | BY16: Informatique | BZ16: 2026-09-30
A17: 109445 | B17: GIE MONDE DE LA PROPRETE | C17: 106945 | D17: Bureautique classique | E17: Validée | F17: FORNB - 2 | G17: FORFAIT Régularisation NB | H17: 53-1 | I17: FORFAIT TRIMEST REGUL COPIES NB | J17: le 21 tous les 3 mois | K17: 3 | L17: Mensuelle | M17: 21 | N17: Echu | O17: Epson WorkForce WF-100W | P17: UTJK089333 | Q17: SYSTÈME IMPRESSION | R17: MULTIFONCTIONS | S17: MULTIFONCTIONS COULEUR | W17: 3000 | Y17: Totalisateur Noir (ou 109) | Z17: 1460 | AA17: VMM | AB17: 2026-05-27T18:46:00 | AC17: 4561 | AF17: 2026-08-20 | AG17: 8641 | AH17: 2026-08-21 | AI17: 2026-08-21 | AJ17: 2026-09-30 | AK17: 10610 | AL17: 10610 | AM17: 8641 | AN17: 1 | AO17: 632.0434783 | AP17: 0.008 | AS17: 5.06 | AT17: 5.056347826 | AY17: Vente | AZ17: 2026-05-21 | BA17: 8641 | BB17: 3000 | BC17: le 21 tous les 3 mois | BD17: 3 | BE17: Mensuelle | BF17: 21 | BI17: 106369 | BJ17: 2026-05-31 | BL17: REGULARISATION - | BM17: CSN | BN17: Copies supplémentaires noires | BP17: 70610000 | BQ17: 01 Impression A | BR17: Forfait et régularisation | BS17: MARCOUSSIS | BX17: 68950 | BY17: Informatique | BZ17: 2026-09-30

Sheet Contrôle 300092026
B2: [...] | C2: Référence à la colonne du fichier
B3: Saisir | C3: Informations à saisir prise dans l'extraction du PCA-PAR Edition concentrée
D5: Date du PCA-PAR | E5: [BY] | F5: 2026-09-30
E7: Référence | F7: Période | G7: Détail | H7: Référence | I7: RFC 1
D8: Partie forfait
D10: Du | E10: [AI] | F10: 2026-08-21 | G10: Nbre de copies du forfait | H10: [W] | I10: 3000
D11: Au | E11: [AJ] | F11: 30/09/20269 | G11: Prorata temporis | H11: [AN] | I11: 0.4457
D13: Date proch. Fact. | E13: [AH] | F13: 2026-08-21
D14: Périodicité | E14: [J] | F14: 3
D16: Début période précédente | F16: =EDATE(F19,-F14) -> 2026-05-21 | G16: Nbre de jours période Précédente | I16: =F19-F16 -> 92
D17: =IF(AND(F5>F16,F5<F19),"Date calc. PCA ici","") ->  | F17: =IF(D17<>"",F5,"") ->  | G17: =IF(D17<>"","Nbre de jours","") ->  | I17: =IF(D17<>"",F19-F17,) -> 0
D18: Fin de la période | F18: =F19-1 -> 2026-08-20
D19: Début prochaine période | F19: =F13 -> 2026-08-21 | G19: Nbre de jours prochaine période | I19: =F21-F19+1 -> 92
D20: =IF(AND(F5>F19,F5<F21),"Date calc. PAR ici","") -> Date calc. PAR ici | F20: =IF(D20<>"",F5,"") -> 2026-09-30 | G20: =IF(D20<>"","Nbre de jours","") -> Nbre de jours | I20: =IF(D20<>"",F20-F19+1,) -> 41
D21: Fin de la période | F21: =EDATE(F19,F14)-1 -> 2026-11-20
G23: Nbre de jours à prendre en compte | I23: =I20+I17 -> 41
G24: Nbre de jours période | I24: =IF(D17<>"",I16,I19) -> 92
G25: Nature (PCA ou PAR) | I25: =IF(F19>F5,"PCA","PAR") -> PAR
G26: =IF(I25="PCA","Prorata forfait non consommé","Prorata forfait à facturer")&" re-calculé" -> Prorata forfait à facturer re-calculé | I26: =I10/I24*I23 -> 1336.956522 | K26: Contrôler
G27: Prorata forfait de l'extraction | H27: [AN]*[W] | I27: =I10*I11 -> 1337.1
D29: Partie régul.
D30: Du | E30: [AI] | F30: 2026-08-21 | G30: Compteur à date du PCA-PAR | H30: [AL] | I30: 10160
D31: Au | E31: [AJ] | F31: 2026-09-30 | G31: Compteur de Dernière régularisation | H31: [BA] | I31: 8641
G33: Cumul des Forfaits facturés | H33: [BB] | I33: 3000
G34: ="Report du " &G26 -> Report du Prorata forfait à facturer re-calculé | I34: =IF(I25="PCA",-1,1) * I26 -> 1336.956522
G35: TOTAL (Cumul des Forfaits facturés) | I35: =I33+I34 -> 4336.956522
G37: Sous total | I37: =I30-I31-I35 -> -2817.956522
G38: Remboursement des unités facturées non consommées | H38: cf RFC | I38: Non
I39: =IF(I40>0,"PAR","") -> 
G40: PCA-PAR sur régularisation re-calculé | I40: =IF(AND(I37<0,I38="Non"),0,I37) -> 0 | K40: Contrôler
G41: Prorata temporis | H41: [AN] | I41: 1
G42: Quantité | H42: [AO] | I42: 632
G43: PCA-PAR sur régularisation de l'extraction | H43: [AN]*[AO] | I43: =I41*I42 -> 632

Sheet Contrôle 20082026
B2: [...] | C2: Référence à la colonne du fichier
B3: Saisir | C3: Informations à saisir prise dans l'extraction du PCA-PAR Edition concentrée
D5: Date du PCA-PAR | E5: [BY] | F5: 2026-08-21
E7: Référence | F7: Période | G7: Détail | H7: Référence | I7: RFC 1
D8: Partie forfait
D10: Du | E10: [AI] | F10: 2026-08-20 | G10: Nbre de copies du forfait | H10: [W] | I10: 3000
D11: Au | E11: [AJ] | F11: 2026-08-20 | G11: Prorata temporis | H11: [AN] | I11: 0
D13: Date proch. Fact. | E13: [AH] | F13: 2026-08-21
D14: Périodicité | E14: [J] | F14: 3
D16: Début période précédente | F16: =EDATE(F19,-F14) -> 2026-05-21 | G16: Nbre de jours période Précédente | I16: =F19-F16 -> 92
D17: =IF(AND(F5>F16,F5<F19),"Date calc. PCA ici","") ->  | F17: =IF(D17<>"",F5,"") ->  | G17: =IF(D17<>"","Nbre de jours","") ->  | I17: =IF(D17<>"",F19-F17,) -> 0
D18: Fin de la période | F18: =F19-1 -> 2026-08-20
D19: Début prochaine période | F19: =F13 -> 2026-08-21 | G19: Nbre de jours prochaine période | I19: =F21-F19+1 -> 92
D20: =IF(AND(F5>F19,F5<F21),"Date calc. PAR ici","") ->  | F20: =IF(D20<>"",F5,"") ->  | G20: =IF(D20<>"","Nbre de jours","") ->  | I20: =IF(D20<>"",F20-F19+1,) -> 0
D21: Fin de la période | F21: =EDATE(F19,F14)-1 -> 2026-11-20
G23: Nbre de jours à prendre en compte | I23: =I20+I17 -> 0
G24: Nbre de jours période | I24: =IF(D17<>"",I16,I19) -> 92
G25: Nature (PCA ou PAR) | I25: =IF(F19>F5,"PCA","PAR") -> PAR
G26: =IF(I25="PCA","Prorata forfait non consommé","Prorata forfait à facturer")&" re-calculé" -> Prorata forfait à facturer re-calculé | I26: =I10/I24*I23 -> 0 | K26: Contrôler
G27: Prorata forfait de l'extraction | H27: [AN]*[W] | I27: =I10*I11 -> 0
D29: Partie régul.
D30: Du | E30: [AI] | F30: 2026-05-21 | G30: Compteur à date du PCA-PAR | H30: [AL] | I30: 8641
D31: Au | E31: [AJ] | F31: 2026-08-20 | G31: Compteur de Dernière régularisation | H31: [BA] | I31: 4561
G33: Cumul des Forfaits facturés | H33: [BB] | I33: 3000
G34: ="Report du " &G26 -> Report du Prorata forfait à facturer re-calculé | I34: =IF(I25="PCA",-1,1) * I26 -> 0
G35: TOTAL (Cumul des Forfaits facturés) | I35: =I33+I34 -> 3000
G37: Sous total | I37: =I30-I31-I35 -> 1080
G38: Remboursement des unités facturées non consommées | H38: cf RFC | I38: Non
I39: =IF(I40>0,"PAR","") -> PAR
G40: PCA-PAR sur régularisation re-calculé | I40: =IF(AND(I37<0,I38="Non"),0,I37) -> 1080 | K40: Contrôler
G41: Prorata temporis | H41: [AN] | I41: 1
G42: Quantité | H42: [AO] | I42: 1080
G43: PCA-PAR sur régularisation de l'extraction | H43: [AN]*[AO] | I43: =I41*I42 -> 1080
